bitfinex/quotes_BTCUSD_20260125
["timestamp","ask_amount","ask_price","bid_price","bid_amount"]
[1769322327085,0.01125872,88820.0,88808.0,0.0002911]
[1769322328095,0.01125885,88819.0,88808.0,0.0002911]
[1769322329234,0.01125872,88820.0,88808.0,0.0002911]
[1769322330079,0.01125859,88821.0,88808.0,0.0002911]
[1769322330543,0.01125872,88820.0,88808.0,0.0002911]
[1769322330664,0.0112591,88817.0,88808.0,0.0002911]
[1769322330867,0.0112591,88817.0,88799.0,0.0001486]
[1769322330868,0.4156513,88816.0,88799.0,0.0001486]
[1769322331117,0.01125948,88814.0,88799.0,0.0001486]
[1769322331358,0.01125935,88815.0,88799.0,0.0001486]
[1769322331496,0.01125999,88810.0,88799.0,0.0001486]
[1769322331882,0.05630253,88806.0,88799.0,7.43e-05]
[1769322332085,0.00014242,88806.0,88799.0,7.43e-05]
[1769322332394,0.01140292,88806.0,88799.0,7.43e-05]
[1769322333518,0.00014242,88806.0,88799.0,7.43e-05]
[1769322333677,0.01140292,88806.0,88799.0,7.43e-05]
[1769322333888,0.00014242,88806.0,88799.0,7.43e-05]
[1769322352833,0.01126088,88803.0,88790.0,0.0001486]
[1769322353217,0.36799366,88802.0,88790.0,0.0001486]
[1769322353648,0.36799366,88802.0,88790.0,0.021032]
[1769322354696,0.36799366,88802.0,88790.0,0.0001486]
[1769322364165,0.00014242,88806.0,88790.0,0.0001486]
[1769322364374,0.36404104,88806.0,88790.0,0.0001486]
[1769322364938,0.36404104,88806.0,88790.0,9.756e-05]
[1769322365176,0.36404104,88806.0,88790.0,4.652e-05]
[1769322366469,0.01126062,88805.0,88790.0,4.652e-05]
[1769322366638,0.01126088,88803.0,88790.0,4.652e-05]
[1769322367041,0.011261,88802.0,88790.0,4.652e-05]
[1769322367264,0.01126088,88803.0,88790.0,4.652e-05]
[1769322368179,0.36389862,88805.0,88790.0,4.652e-05]
[1769322368808,0.37515924,88805.0,88790.0,4.652e-05]
[1769322369211,0.36389862,88805.0,88790.0,4.652e-05]
[1769322370255,0.13616474,88805.0,88790.0,4.652e-05]
[1769322370389,0.13616474,88805.0,88790.0,0.02196387]
[1769322376481,0.14742536,88805.0,88790.0,0.02196387]
[1769322376706,0.01126075,88804.0,88790.0,4.652e-05]
[1769322376911,0.01126088,88803.0,88790.0,4.652e-05]
[1769322377115,0.01126075,88804.0,88790.0,4.652e-05]
[1769322377688,0.01126088,88803.0,88790.0,4.652e-05]
[1769322378044,0.01126075,88804.0,88790.0,4.652e-05]
[1769322378535,0.01126088,88803.0,88790.0,4.652e-05]
[1769322378759,0.01126075,88804.0,88790.0,4.652e-05]
[1769322380077,0.01126151,88798.0,88790.0,4.652e-05]
[1769322381302,0.01126138,88799.0,88790.0,4.652e-05]
[1769322382182,0.01126126,88800.0,88790.0,4.652e-05]
[1769322382393,0.13521338,88821.0,88790.0,4.652e-05]
[1769322382674,0.05630547,88802.0,88790.0,0.00018894]
[1769322383415,0.01126126,88800.0,88790.0,0.00018894]
[1769322383622,0.01126138,88799.0,88790.0,0.00018894]
[1769322383797,0.01126126,88800.0,88790.0,0.00018894]
[1769322385297,0.01126113,88801.0,88790.0,0.00018894]
[1769322385792,0.01126126,88800.0,88790.0,0.00018894]
[1769322386127,0.01126113,88801.0,88790.0,0.00018894]
[1769322386478,0.01126126,88800.0,88790.0,0.00018894]
[1769322388923,0.01126113,88801.0,88790.0,0.00018894]
[1769322389555,0.01126126,88800.0,88790.0,0.00018894]
[1769322394335,0.01126126,88800.0,88790.0,0.14272566]
[1769322395399,0.01126138,88799.0,88790.0,0.14272566]
[1769322397407,0.01126126,88800.0,88790.0,0.14272566]
[1769322398248,0.01126138,88799.0,88790.0,0.14272566]
[1769322398973,0.01126126,88800.0,88790.0,0.14272566]
[1769322399544,0.01126138,88799.0,88790.0,0.14272566]
[1769322399746,0.01126126,88800.0,88790.0,0.14272566]
[1769322403098,0.18112733,88805.0,88790.0,0.14272566]
[1769322403226,0.01126126,88800.0,88790.0,0.14272566]
[1769322403428,0.01126113,88801.0,88790.0,0.14272566]
[1769322404299,0.011261,88802.0,88790.0,0.14272566]
[1769322404574,0.18112733,88805.0,88790.0,0.14272566]
[1769322404777,0.01126075,88804.0,88790.0,0.54545766]
[1769322404976,0.01126075,88804.0,88791.0,0.54526872]
[1769322405179,0.01126075,88804.0,88792.0,0.14253672]
[1769322405478,0.01126113,88801.0,88790.0,0.00018894]
[1769322406072,0.01126126,88800.0,88790.0,0.14272566]
[1769322407221,0.01126138,88799.0,88790.0,0.14272566]
[1769322407664,0.05630542,88802.0,88790.0,0.14272566]
[1769322407798,0.01126126,88800.0,88790.0,0.14272566]
[1769322408017,0.01126138,88799.0,88790.0,0.14272566]
[1769322408433,0.01126126,88800.0,88790.0,0.14272566]
[1769322408860,0.01126138,88799.0,88790.0,0.14272566]
[1769322409475,0.01126126,88800.0,88790.0,0.14272566]
[1769322410304,0.01126138,88799.0,88790.0,0.14272566]
[1769322412163,0.01126138,88799.0,88790.0,0.14239841]
[1769322412973,0.01126126,88800.0,88790.0,0.14239841]
[1769322413199,0.01126113,88801.0,88790.0,0.14239841]
[1769322414697,0.01126126,88800.0,88790.0,0.14239841]
[1769322414914,0.01126088,88803.0,88790.0,0.14239841]
[1769322415123,0.0112605,88806.0,88791.0,0.68780544]
[1769322415338,0.01126075,88804.0,88791.0,0.68780544]
[1769322415697,0.01126088,88803.0,88792.0,0.14253672]
[1769322416332,0.05630278,88806.0,88792.0,0.14253672]
[1769322416700,0.01126062,88805.0,88792.0,0.14253672]
[1769322416907,0.01126088,88803.0,88792.0,0.14253672]
[1769322417465,0.00023475,88792.0,88782.0,0.173]
[1769322417601,0.12982125,88796.0,88782.0,0.17304814]
[1769322417807,0.16325376,88801.0,88783.0,0.16035675]
[1769322418318,0.01126176,88796.0,88784.0,0.14253672]
[1769322418521,0.01126176,88796.0,88782.0,0.17304814]
[1769322418522,0.01126126,88800.0,88786.0,0.14253672]
[1769322418694,0.01126126,88800.0,88786.0,0.54526872]
[1769322418897,0.01126151,88798.0,88787.0,0.14253672]
[1769322419674,0.01126164,88797.0,88787.0,0.14253672]
[1769322420567,0.01126151,88798.0,88787.0,0.14253672]
[1769322420870,0.06756916,88798.0,88787.0,0.14253672]
[1769322421074,0.01126176,88796.0,88787.0,0.14253672]
[1769322421275,0.01126151,88798.0,88787.0,0.14253672]
[1769322421476,0.01126164,88797.0,88787.0,0.14253672]
[1769322421895,0.01126214,88793.0,88787.0,0.14253672]
[1769322422094,0.01126214,88793.0,88787.0,0.1036676]
[1769322422731,0.01126265,88789.0,88782.0,4.814e-05]
[1769322422885,0.26428181,88802.0,88763.0,0.0001486]
[1769322422886,0.01126354,88782.0,88767.0,0.5537322]
[1769322423071,0.01126354,88782.0,88772.0,0.00020745]
[1769322423072,0.01126379,88780.0,88772.0,0.00020745]
[1769322423509,0.01126417,88777.0,88772.0,0.00020745]
[1769322423688,0.01126392,88779.0,88770.0,0.15784642]
[1769322424021,0.01126405,88778.0,88770.0,0.15832155]
[1769322424358,0.01126417,88777.0,88770.0,0.15832155]
[1769322424733,0.01126405,88778.0,88770.0,0.15832155]
[1769322425923,0.01126392,88779.0,88770.0,0.15832155]
[1769322426324,0.06758357,88779.0,88770.0,0.15832155]
[1769322426526,0.01126405,88778.0,88770.0,0.15832155]
[1769322427369,0.01126392,88779.0,88770.0,0.15832155]
[1769322427593,0.01126379,88780.0,88770.0,0.15832155]
[1769322427808,0.01126392,88779.0,88770.0,0.15832155]
[1769322428346,0.01126405,88778.0,88770.0,0.15832155]
[1769322428571,0.01126392,88779.0,88770.0,0.15832155]
[1769322429001,0.01126405,88778.0,88770.0,0.15832155]
[1769322429231,0.01126417,88777.0,88770.0,0.15832155]
[1769322430758,0.05632177,88776.0,88770.0,0.15272155]
[1769322430920,0.01126468,88773.0,88770.0,0.14712654]
[1769322431124,0.01126443,88775.0,88770.0,0.11353153]
[1769322431367,0.01126455,88774.0,88767.0,0.54852737]
[1769322431488,0.01126443,88775.0,88767.0,0.54866983]
[1769322432213,0.01126455,88774.0,88767.0,0.00014246]
[1769322432622,0.01126443,88775.0,88767.0,0.00014246]
[1769322433241,0.01126417,88777.0,88767.0,0.00014246]
[1769322433449,0.0112643,88776.0,88767.0,0.00014246]
[1769322434277,0.01126455,88774.0,88767.0,0.00014246]
[1769322434507,0.01126468,88773.0,88767.0,0.00014246]
[1769322435469,0.01126468,88773.0,88767.0,7.123e-05]
[1769322435869,0.01126481,88772.0,88767.0,7.123e-05]
[1769322436887,0.01126494,88771.0,88767.0,7.123e-05]
[1769322437298,0.01126481,88772.0,88767.0,7.123e-05]
[1769322437789,0.01126468,88773.0,88767.0,7.123e-05]
[1769322438086,0.01126443,88775.0,88767.0,7.123e-05]
[1769322438285,0.01126455,88774.0,88767.0,7.123e-05]
[1769322438488,0.0112643,88776.0,88767.0,7.123e-05]
[1769322438693,0.01126443,88775.0,88767.0,7.123e-05]
[1769322438854,0.01126455,88774.0,88767.0,7.123e-05]
[1769322439056,0.01126443,88775.0,88767.0,7.123e-05]
[1769322439393,0.0112643,88776.0,88767.0,7.123e-05]
[1769322439592,0.01126405,88778.0,88767.0,7.123e-05]
[1769322439593,0.01126417,88777.0,88767.0,7.123e-05]
[1769322439965,0.01126405,88778.0,88767.0,7.123e-05]
[1769322441423,0.0112643,88776.0,88767.0,7.123e-05]
[1769322442662,0.01126405,88778.0,88767.0,7.123e-05]
[1769322443534,0.0112643,88776.0,88767.0,7.123e-05]
[1769322443829,0.01126405,88778.0,88767.0,7.123e-05]
[1769322443830,0.01126417,88777.0,88767.0,7.123e-05]
[1769322444030,0.01126405,88778.0,88767.0,7.123e-05]
[1769322445456,0.06758453,88778.0,88767.0,7.123e-05]
[1769322446210,0.01126417,88777.0,88767.0,7.123e-05]
[1769322446949,0.01126379,88780.0,88767.0,7.123e-05]
[1769322447351,0.01162529,88781.0,88767.0,7.123e-05]
[1769322447585,0.01126392,88779.0,88767.0,0.75191439]
[1769322447752,0.01126379,88780.0,88767.0,0.75191439]
[1769322447946,0.1547883,88783.0,88767.0,0.75191439]
[1769322448147,0.02252733,88789.0,88769.0,0.15528646]
[1769322448362,0.02252733,88789.0,88767.0,7.123e-05]
[1769322448363,0.13446056,88786.0,88770.0,0.75184316]
[1769322450692,0.13446056,88786.0,88770.0,0.5965567]
[1769322450937,0.13446056,88786.0,88773.0,0.15528646]
[1769322451135,0.13446056,88786.0,88773.0,0.75184316]
[1769322451332,0.11237678,88785.0,88773.0,0.75184316]
[1769322454195,0.12363994,88785.0,88773.0,0.75184316]
[1769322454395,0.11237678,88785.0,88773.0,0.75184316]
[1769322457470,0.07646932,88786.0,88773.0,0.75184316]
[1769322466030,0.08773235,88786.0,88773.0,0.75184316]
[1769322466251,0.07646932,88786.0,88773.0,0.75184316]
[1769322466455,0.01126316,88785.0,88773.0,0.75184316]
[1769322466852,0.01126341,88783.0,88773.0,0.75184316]
[1769322467046,0.01126329,88784.0,88773.0,0.75184316]
[1769322467270,0.01126329,88784.0,88767.0,7.123e-05]
[1769322467572,0.01126329,88784.0,88769.0,0.71030132]
[1769322467774,0.01126354,88782.0,88769.0,0.1497355]
[1769322467972,0.01126455,88774.0,88767.0,0.56063705]
[1769322468192,0.0112643,88776.0,88767.0,0.56063705]
[1769322468193,0.0112643,88776.0,88767.0,7.123e-05]
[1769322468332,0.01126443,88775.0,88767.0,7.123e-05]
[1769322468538,0.0112643,88776.0,88767.0,7.123e-05]
[1769322469115,0.0001486,88794.0,88777.0,0.3401789]
[1769322469320,0.13446056,88785.0,88776.0,1e-08]
[1769322470473,0.14572372,88785.0,88776.0,1e-08]
[1769322470897,0.01126341,88783.0,88776.0,1e-08]
[1769322471611,0.01126329,88784.0,88776.0,1e-08]
[1769322472495,0.13446056,88785.0,88776.0,1e-08]
[1769322474296,0.71044869,88792.0,88776.0,1e-08]
[1769322474610,0.11250653,88791.0,88776.0,1e-08]
[1769322475431,0.01126278,88788.0,88776.0,1e-08]
[1769322476351,0.12376918,88789.0,88776.0,1e-08]
[1769322476953,0.11250653,88789.0,88776.0,1e-08]
[1769322477153,0.0112624,88791.0,88776.0,1e-08]
[1769322477324,0.12378276,88791.0,88776.0,1e-08]
[1769322478810,0.11252036,88791.0,88776.0,1e-08]
[1769322479854,0.16883298,88791.0,88776.0,1e-08]
[1769322480160,0.11252036,88790.0,88776.0,1e-08]
[1769322480455,0.01126265,88789.0,88776.0,1e-08]
[1769322480665,0.01126278,88788.0,88776.0,1e-08]
[1769322483093,0.01126316,88785.0,88776.0,1e-08]
[1769322483569,0.12378339,88786.0,88776.0,1e-08]
[1769322483771,0.11252036,88786.0,88776.0,1e-08]
[1769322484074,0.11252036,88785.0,88776.0,0.16212315]
[1769322484237,0.11252036,88784.0,88776.0,0.16212315]
[1769322484461,0.01126278,88788.0,88776.0,0.16212315]
[1769322485614,0.11252266,88790.0,88776.0,0.16212315]
[1769322487293,0.12378518,88790.0,88776.0,0.16212315]
[1769322487499,0.11252266,88790.0,88776.0,1e-08]
[1769322487702,0.11252266,88789.0,88776.0,1e-08]
[1769322487902,0.11252266,88788.0,88776.0,1e-08]
[1769322488102,0.11252266,88787.0,88776.0,1e-08]
[1769322488309,0.11252266,88786.0,88776.0,1e-08]
[1769322488495,0.11252266,88785.0,88776.0,0.75992201]
[1769322488852,0.0112624,88791.0,88777.0,0.16212314]
[1769322489056,0.11251779,88791.0,88777.0,0.16212314]
[1769322489257,0.11251779,88790.0,88778.0,0.59779886]
[1769322489458,0.11251779,88789.0,88778.0,0.59779886]
[1769322489632,0.11251779,88788.0,88778.0,0.59779886]
[1769322489835,0.11251779,88787.0,88778.0,0.59779886]
[1769322490039,0.0112624,88791.0,88778.0,0.59779886]
[1769322490438,0.1237766,88792.0,88778.0,0.59779886]
[1769322490624,0.11251433,88791.0,88779.0,0.16212314]
[1769322490820,0.11251433,88790.0,88779.0,0.16212314]
[1769322491026,0.11251433,88789.0,88779.0,0.16212314]
[1769322491339,0.11251433,88788.0,88779.0,0.16212314]
[1769322491540,0.11251433,88787.0,88779.0,0.16212314]
[1769322491765,0.01126227,88792.0,88779.0,0.16212314]
[1769322491932,0.01126214,88793.0,88779.0,0.16212314]
[1769322492125,0.12377047,88793.0,88779.0,0.16212314]
[1769322493339,0.11250833,88793.0,88779.0,0.16212314]
[1769322493897,0.11250833,88793.0,88779.0,0.7194755]
[1769322494026,0.12377047,88793.0,88779.0,0.7194755]
[1769322494235,0.01126227,88792.0,88779.0,0.7194755]
[1769322494744,0.12377047,88793.0,88779.0,0.7194755]
[1769322494917,0.01126227,88792.0,88779.0,0.7194755]
[1769322495905,0.0112624,88791.0,88779.0,0.7194755]
[1769322496311,0.01126252,88790.0,88779.0,0.7194755]
[1769322497116,0.12377085,88790.0,88779.0,0.7194755]
[1769322497485,0.11250833,88789.0,88779.0,0.7194755]
[1769322497785,0.11250833,88788.0,88779.0,0.7194755]
[1769322498024,0.11250833,88787.0,88779.0,0.7194755]
[1769322498175,0.0112624,88791.0,88779.0,0.7194755]
[1769322498779,0.12377866,88791.0,88779.0,0.7194755]
[1769322499993,0.12311588,88791.0,88779.0,0.7194755]
[1769322501261,0.12311588,88791.0,88779.0,0.55735236]
[1769322501382,0.12311588,88791.0,88776.0,1e-08]
[1769322502198,0.12311588,88791.0,88776.0,0.72164036]
[1769322502409,0.11251626,88790.0,88776.0,0.72164036]
[1769322502736,0.11251626,88789.0,88776.0,0.72164036]
[1769322502937,0.11251626,88788.0,88776.0,0.72164036]
[1769322503137,0.11251626,88787.0,88776.0,0.72164036]
[1769322503349,0.01059962,88791.0,88776.0,0.72164036]
[1769322504118,0.01039688,88791.0,88776.0,0.72164036]
[1769322505160,0.12292854,88791.0,88776.0,0.72164036]
[1769322505345,0.11253166,88790.0,88776.0,0.72164036]
[1769322505678,0.11253166,88789.0,88776.0,0.72164036]
[1769322505890,0.11253166,88788.0,88776.0,0.72164036]
[1769322506043,0.11253166,88787.0,88776.0,0.72164036]
[1769322506247,0.01039688,88791.0,88776.0,0.72164036]
[1769322506451,0.01126278,88788.0,88776.0,0.72164036]
[1769322506894,0.11253825,88789.0,88776.0,0.72164036]
[1769322507723,0.11253825,88789.0,88776.0,1e-08]
[1769322507856,0.01126329,88784.0,88776.0,1e-08]
[1769322508265,0.01126316,88785.0,88776.0,1e-08]
[1769322508465,0.01126329,88784.0,88776.0,1e-08]
[1769322511309,0.01126354,88782.0,88776.0,1e-08]
[1769322512497,0.06757988,88784.0,88776.0,1e-08]
[1769322512703,0.01126329,88784.0,88776.0,1e-08]
[1769322514697,0.01126367,88781.0,88776.0,1e-08]
[1769322514899,0.01126354,88782.0,88776.0,1e-08]
[1769322515313,0.06758051,88783.0,88776.0,1e-08]
[1769322515314,0.01126341,88783.0,88776.0,1e-08]
[1769322517629,0.01126329,88784.0,88776.0,1e-08]
[1769322518617,0.01126341,88783.0,88776.0,1e-08]
[1769322518974,0.01126329,88784.0,88776.0,1e-08]
[1769322520460,0.01126354,88782.0,88767.0,7.123e-05]
[1769322520657,0.01126341,88783.0,88767.0,7.123e-05]
[1769322520800,0.01126329,88784.0,88767.0,7.123e-05]
[1769322521002,0.01126341,88783.0,88769.0,0.16833371]
[1769322521231,0.01126329,88784.0,88770.0,0.01408925]
[1769322521670,0.11255234,88785.0,88772.0,0.16833371]
[1769322521823,0.01126265,88789.0,88774.0,0.16833371]
[1769322522025,0.01126265,88789.0,88775.0,0.73722442]
[1769322522423,0.01126291,88787.0,88775.0,0.73722442]
[1769322522647,0.93568883,88795.0,88775.0,0.73722442]
[1769322523054,0.01126265,88789.0,88775.0,0.73722442]
[1769322523907,0.01126252,88790.0,88775.0,0.73722442]
[1769322525431,0.0112624,88791.0,88775.0,0.73722442]
[1769322526688,0.01126252,88790.0,88775.0,0.73722442]
[1769322527125,0.01126265,88789.0,88775.0,0.73722442]
[1769322527528,0.01126278,88788.0,88775.0,0.73722442]
[1769322527759,0.01126291,88787.0,88775.0,0.73722442]
[1769322528369,0.06757671,88788.0,88775.0,0.73722442]
[1769322528543,0.01126278,88788.0,88775.0,0.73722442]
[1769322528863,0.01126252,88790.0,88775.0,0.73722442]
[1769322529162,0.01126265,88789.0,88775.0,0.73722442]
[1769322530890,0.01126252,88790.0,88775.0,0.73722442]
[1769322531989,0.01126265,88789.0,88775.0,0.73722442]
[1769322532348,0.19263765,88788.0,88775.0,0.73722442]
[1769322534673,0.11255413,88787.0,88775.0,0.73722442]
[1769322536053,0.11255413,88786.0,88775.0,0.73722442]
[1769322536251,0.11255413,88785.0,88775.0,0.73722442]
[1769322536490,0.11255413,88784.0,88775.0,0.73722442]
[1769322536706,0.01126265,88792.0,88775.0,0.73722442]
[1769322536908,0.0112624,88791.0,88775.0,0.73722442]
[1769322537340,0.01126252,88790.0,88775.0,0.73722442]
[1769322537476,0.11255718,88791.0,88775.0,0.73722442]
[1769322537675,0.1238197,88790.0,88775.0,0.73722442]
[1769322537881,0.11255718,88789.0,88775.0,0.73722442]
[1769322538116,0.11255718,88788.0,88775.0,0.73722442]
[1769322538309,0.11255718,88787.0,88775.0,0.73722442]
[1769322538510,0.11255718,88786.0,88775.0,0.73722442]
[1769322538735,0.11255718,88785.0,88775.0,0.73722442]
[1769322538920,0.11255718,88784.0,88775.0,0.73722442]
[1769322539089,0.0112624,88791.0,88775.0,0.73722442]
[1769322539715,0.19263765,88790.0,88775.0,0.73722442]
[1769322540033,0.11255517,88789.0,88775.0,0.73722442]
[1769322541545,0.11255517,88788.0,88775.0,0.73722442]
[1769322541840,0.11255517,88787.0,88775.0,0.73722442]
[1769322542047,0.11255517,88786.0,88775.0,0.73722442]
[1769322542277,0.19263765,88784.0,88775.0,0.73722442]
[1769322546974,0.11254684,88783.0,88775.0,0.73722442]
[1769322548526,0.11254684,88782.0,88775.0,0.73722442]
[1769322548673,0.10128718,88791.0,88775.0,0.73722442]
[1769322548874,0.1238122,88791.0,88775.0,0.73722442]
[1769322550257,0.08495462,88790.0,88775.0,0.73722442]
[1769322550463,0.1125498,88789.0,88775.0,0.73722442]
[1769322550609,0.76608248,88792.0,88775.0,0.73722442]
[1769322551149,0.0563125,88791.0,88775.0,0.73722442]
[1769322551370,0.01126252,88790.0,88775.0,0.73722442]
[1769322551507,0.11894568,88789.0,88775.0,0.73722442]
[1769322551900,0.10768303,88789.0,88775.0,0.73722442]
[1769322552203,0.03379933,88788.0,88775.0,0.73722442]
[1769322555062,0.08495462,88787.0,88775.0,0.73722442]
[1769322555816,0.03379933,88786.0,88775.0,0.73722442]
[1769322558103,0.10768303,88785.0,88775.0,0.73722442]
[1769322562548,0.11257738,88784.0,88775.0,0.73722442]
[1769322563874,0.11257738,88783.0,88775.0,0.73722442]
[1769322564070,0.11257738,88782.0,88775.0,0.73722442]
[1769322564277,0.03379933,88786.0,88775.0,0.73722442]
[1769322564462,0.11257725,88785.0,88775.0,0.73722442]
[1769322565633,0.08495462,88784.0,88775.0,0.73722442]
[1769322565938,0.11257725,88783.0,88775.0,0.73722442]
[1769322567408,0.11257725,88782.0,88775.0,0.16833371]
[1769322567605,0.04506236,88786.0,88775.0,0.16833371]
[1769322567814,0.11257754,88785.0,88770.0,0.58616035]
[1769322568066,0.10768303,88784.0,88770.0,0.75589148]
[1769322568368,0.11257754,88783.0,88770.0,0.75589148]
[1769322569798,0.11257754,88782.0,88770.0,0.75589148]
[1769322569998,0.03379933,88786.0,88770.0,0.75589148]
[1769322570254,0.11257696,88785.0,88770.0,0.75589148]
[1769322570549,0.10768303,88784.0,88770.0,0.75589148]
[1769322570752,0.11257696,88783.0,88770.0,0.75589148]
[1769322572238,0.11257696,88782.0,88770.0,0.75589148]
[1769322572434,0.04506236,88786.0,88770.0,0.75589148]
[1769322572655,0.11257537,88785.0,88770.0,0.75589148]
[1769322573058,0.10768303,88784.0,88770.0,0.75589148]
[1769322573288,0.11257537,88783.0,88770.0,0.75589148]
[1769322573858,0.11257537,88783.0,88770.0,0.75549263]
[1769322574856,0.11257537,88782.0,88770.0,0.75549263]
[1769322575060,0.03379933,88786.0,88770.0,0.75549263]
[1769322575275,0.11257485,88785.0,88770.0,0.75549263]
[1769322576652,0.08495465,88784.0,88770.0,0.75549263]
[1769322576854,0.11257485,88783.0,88771.0,0.59910149]
[1769322577452,0.11257485,88783.0,88772.0,0.01388185]
[1769322578415,0.03379933,88786.0,88772.0,0.01388185]
[1769322578615,0.11257483,88785.0,88772.0,0.01388185]
[1769322579238,0.10768303,88784.0,88772.0,0.01388185]
[1769322579432,0.11257483,88783.0,88772.0,0.01388185]
[1769322580873,0.03379933,88786.0,88772.0,0.01388185]
[1769322581073,0.11257556,88785.0,88772.0,0.01388185]
[1769322581551,0.10768303,88784.0,88771.0,0.59910149]
[1769322581756,0.11257556,88783.0,88771.0,0.59910149]
[1769322583357,0.03379933,88786.0,88771.0,0.59910149]
[1769322583581,0.11255479,88785.0,88771.0,0.59910149]
[1769322584046,0.10768303,88784.0,88771.0,0.59910149]
[1769322584299,0.11255479,88783.0,88771.0,0.59910149]
[1769322585912,0.03379933,88786.0,88771.0,0.59910149]
[1769322586120,0.1125553,88785.0,88771.0,0.59910149]
[1769322586495,0.1125553,88785.0,88772.0,0.01382656]
[1769322587582,0.08495465,88784.0,88772.0,0.01382656]
[1769322587785,0.1125553,88783.0,88772.0,0.01382656]
[1769322589301,0.03379933,88786.0,88772.0,0.01382656]
[1769322589646,0.11255567,88785.0,88771.0,0.59910149]
[1769322590157,0.10768303,88784.0,88771.0,0.59910149]
[1769322590324,0.11255567,88783.0,88771.0,0.59910149]
[1769322591841,0.03379933,88786.0,88771.0,0.59910149]
[1769322592052,0.1125558,88785.0,88771.0,0.59910149]
[1769322592643,0.10768303,88784.0,88771.0,0.59910149]
[1769322592844,0.1125558,88783.0,88771.0,0.59910149]
[1769322594371,0.03379933,88786.0,88771.0,0.59910149]
[1769322594576,0.11255597,88785.0,88771.0,0.59910149]
[1769322595215,0.10768303,88784.0,88771.0,0.59910149]
[1769322595405,0.11255597,88783.0,88771.0,0.59910149]
[1769322596880,0.03379933,88786.0,88771.0,0.59910149]
[1769322597080,0.11255613,88785.0,88771.0,0.59910149]
[1769322598676,0.08495465,88784.0,88771.0,0.59910149]
[1769322598878,0.11255613,88783.0,88771.0,0.59910149]
[1769322600316,0.11255613,88782.0,88771.0,0.59910149]
[1769322600517,0.11255613,88785.0,88771.0,0.59910149]
[1769322600708,0.11253401,88784.0,88771.0,0.59910149]
[1769322600872,0.11253401,88783.0,88772.0,0.01329963]
[1769322601077,0.10768303,88781.0,88772.0,0.01329963]
[1769322601807,0.10768303,88781.0,88771.0,0.59910149]
[1769322602980,0.78773148,88788.0,88771.0,0.59910149]
[1769322603180,0.12376561,88787.0,88771.0,0.59910149]
[1769322603380,0.01126303,88786.0,88771.0,0.59910149]
[1769322603577,0.12376561,88787.0,88771.0,0.59910149]
[1769322604735,0.01126303,88786.0,88771.0,0.59910149]
[1769322604998,0.12376561,88787.0,88771.0,0.59910149]
[1769322605157,0.1125027,88787.0,88771.0,0.59910149]
[1769322609983,0.1125027,88787.0,88772.0,0.01955667]
[1769322611537,0.1125027,88787.0,88770.0,0.16973113]
[1769322611682,0.1125027,88787.0,88770.0,0.74354495]
[1769322611880,0.1125027,88787.0,88771.0,0.02068418]
[1769322612415,0.03379933,88786.0,88771.0,0.02068418]
[1769322612798,0.57136884,88789.0,88772.0,0.16567737]
[1769322613000,0.15756333,88788.0,88773.0,0.02068371]
[1769322613218,0.11250122,88787.0,88773.0,0.02068371]
[1769322614217,0.01126278,88788.0,88773.0,0.02068371]
[1769322614425,0.01126291,88787.0,88773.0,0.02068371]
[1769322614678,0.58423202,88789.0,88773.0,0.02068371]
[1769322614679,0.5279187,88789.0,88773.0,0.02068371]
[1769322614912,0.56171803,88789.0,88773.0,0.02068371]
[1769322615516,0.55045538,88789.0,88773.0,0.02068371]
[1769322615719,0.5279187,88789.0,88773.0,0.02068371]
[1769322615928,0.5279187,88789.0,88772.0,0.16567737]
[1769322616637,0.01126278,88788.0,88772.0,0.16567737]
[1769322616844,0.5279187,88789.0,88772.0,0.16567737]
[1769322617608,0.01126278,88788.0,88772.0,0.16567737]
[1769322618813,0.51665605,88789.0,88772.0,0.16567737]
[1769322619633,0.5279187,88789.0,88772.0,0.16567737]
[1769322619834,0.51665605,88789.0,88772.0,0.16567737]
[1769322624158,0.5279187,88789.0,88772.0,0.16567737]
[1769322624682,0.51665605,88789.0,88772.0,0.16567737]
[1769322624851,0.5279187,88789.0,88772.0,0.16567737]
[1769322625561,0.01126278,88788.0,88772.0,0.16567737]
[1769322626187,0.12376994,88788.0,88772.0,0.16567737]
[1769322626584,0.11250716,88788.0,88772.0,0.16567737]
[1769322628592,0.11250716,88788.0,88773.0,0.02035892]
[1769322628792,0.11250716,88788.0,88772.0,0.15470544]
[1769322629014,0.11250716,88788.0,88773.0,0.175067]
[1769322635601,0.11250716,88788.0,88774.0,0.15747199]
[1769322635799,0.11250716,88788.0,88775.0,0.17783354]
[1769322639603,0.11250716,88787.0,88777.0,0.15747199]
[1769322639817,0.11250716,88786.0,88778.0,0.15747199]
[1769322640020,0.04506185,88790.0,88778.0,0.15747199]
[1769322640199,0.12377463,88789.0,88778.0,0.15747199]
[1769322640404,0.01126278,88788.0,88778.0,0.15747199]
[1769322641275,0.12377463,88789.0,88778.0,0.15747199]
[1769322641474,0.11251198,88789.0,88778.0,0.15747199]
[1769322647118,0.12377463,88789.0,88778.0,0.15747199]
[1769322647471,0.11251198,88789.0,88778.0,0.15747199]
[1769322649359,0.45811132,88792.0,88778.0,0.15747199]
[1769322649560,0.46937359,88792.0,88778.0,0.15747199]
[1769322649782,0.01126252,88790.0,88778.0,0.15747199]
[1769322649979,0.01126265,88789.0,88778.0,0.15747199]
[1769322650189,0.01126265,88789.0,88772.0,0.60051939]
[1769322650190,0.01126278,88788.0,88772.0,0.60051939]
[1769322650384,0.01126278,88788.0,88773.0,0.15747199]
[1769322650581,0.01126291,88787.0,88773.0,0.15747199]
[1769322651122,0.01126316,88785.0,88773.0,0.15747199]
[1769322651324,0.01126329,88784.0,88773.0,0.15747199]
[1769322651539,0.01126316,88785.0,88773.0,0.15747199]
[1769322651831,0.01126367,88781.0,88773.0,0.14792198]
[1769322652216,0.01126341,88783.0,88773.0,0.14792198]
[1769322652424,0.01126367,88781.0,88773.0,0.14792198]
[1769322652775,0.01126354,88782.0,88773.0,0.14792198]
[1769322652947,0.01126367,88781.0,88773.0,0.14792198]
[1769322653148,0.01126354,88782.0,88773.0,0.14792198]
[1769322654141,0.01126367,88781.0,88773.0,0.14792198]
[1769322654751,0.01126354,88782.0,88773.0,0.14792198]
[1769322655881,0.01126367,88781.0,88773.0,0.14792198]
[1769322656648,0.01126379,88780.0,88773.0,0.14792198]
[1769322657070,0.01126392,88779.0,88773.0,0.14792198]
[1769322657307,0.06758207,88781.0,88773.0,0.14792198]
[1769322657452,0.01126379,88780.0,88773.0,0.14792198]
[1769322658182,0.01126367,88781.0,88773.0,0.14792198]
[1769322658609,0.01126354,88782.0,88773.0,0.14792198]
[1769322658760,0.01126367,88781.0,88773.0,0.14792198]
[1769322659387,0.01126354,88782.0,88773.0,0.14792198]
[1769322660313,0.01126341,88783.0,88773.0,0.14792198]
[1769322660716,0.01126354,88782.0,88773.0,0.14792198]
[1769322661947,0.01126341,88783.0,88773.0,0.14792198]
[1769322662085,0.01126354,88782.0,88773.0,0.14792198]
[1769322662294,0.01126341,88783.0,88773.0,0.14792198]
[1769322662557,0.01126367,88781.0,88773.0,0.14792198]
[1769322663124,0.01126379,88780.0,88773.0,0.14792198]
[1769322663354,0.01126367,88781.0,88773.0,0.14792198]
[1769322664430,0.01126354,88782.0,88773.0,0.14792198]
[1769322665473,0.01126379,88780.0,88773.0,0.14792198]